fUST/lending_fUST_20251231
["ID","MTS","AMOUNT","RATE_DAILY","PERIOD"]
[400150502,1767156641937,-502.4340095,0.00014247,2]
[400150504,1767156641946,-1000.0,0.00014247,2]
[400150506,1767156641955,-1000.0,0.00014247,2]
[400150508,1767156641964,-688.75934812,0.00014247,2]
[400150510,1767156641973,-1000.0,0.00014247,2]
[400150512,1767156641982,-1000.0,0.00014247,2]
[400150514,1767156641991,-1000.0,0.00014247,2]
[400150516,1767156642000,-1000.0,0.00014247,2]
[400150518,1767156642008,-1000.0,0.00014247,2]
[400150520,1767156642017,-1000.0,0.00014247,2]
[400150522,1767156642026,-1000.0,0.00014247,2]
[400150524,1767156642035,-500.4478313,0.00014247,2]
[400150526,1767156642044,-1000.0,0.00014247,2]
[400150528,1767156642053,-1000.0,0.00014247,2]
[400150530,1767156642062,-1000.0,0.00014247,2]
[400150532,1767156642071,-500.0,0.00014247,2]
[400150534,1767156642080,-1000.0,0.00014247,2]
[400150535,1767156642089,-1000.0,0.00014247,2]
[400150537,1767156642098,-1000.0,0.00014247,2]
[400150539,1767156642107,-1000.0,0.00014247,2]
[400150542,1767156642117,-1000.0,0.00014247,2]
[400150543,1767156642126,-345.96405937,0.00014247,2]
[400150545,1767156642135,-1000.0,0.00014247,2]
[400150548,1767156642144,-500.68443154,0.00014247,2]
[400150550,1767156642153,-1000.0,0.00014247,2]
[400150551,1767156642162,-1000.0,0.00014247,2]
[400150554,1767156642172,-1000.0,0.00014247,2]
[400150556,1767156642182,-911.90264951,0.00014247,2]
[400150558,1767156642191,-1000.0,0.00014247,2]
[400150560,1767156642200,-500.48099046,0.00014247,2]
[400150562,1767156642211,-1000.0,0.00014247,2]
[400150564,1767156642220,-297.63479171,0.00014247,2]
[400150566,1767156642230,-1000.0,0.00014247,2]
[400150568,1767156642239,-1000.0,0.00014247,2]
[400150570,1767156642247,-1000.0,0.00014247,2]
[400150572,1767156642257,-495.63847364,0.00014247,2]
[400150574,1767156642267,-1000.0,0.00014247,2]
[400150576,1767156642276,-1000.0,0.00014247,2]
[400150578,1767156642284,-1000.0,0.00014247,2]
[400150580,1767156642293,-1000.0,0.00014247,2]
[400150581,1767156642303,-1000.0,0.00014247,2]
[400150583,1767156642312,-1000.0,0.00014247,2]
[400150585,1767156642321,-1000.0,0.00014247,2]
[400150587,1767156642330,-1000.0,0.00014247,2]
[400150589,1767156642339,-1000.75482131,0.00014247,2]
[400150591,1767156642348,-1000.0,0.00014247,2]
[400150593,1767156642357,-1000.0,0.00014247,2]
[400150595,1767156642366,-1000.0,0.00014247,2]
[400150597,1767156642375,-454.65827101,0.00014247,2]
[400150599,1767156642384,-1000.0,0.00014247,2]
[400150601,1767156642393,-1000.0,0.00014247,2]
[400150603,1767156642402,-1000.0,0.00014247,2]
[400150605,1767156642411,-1000.0,0.00014247,2]
[400150607,1767156642421,-295.43360933,0.00014247,2]
[400150609,1767156642430,-1000.0,0.00014247,2]
[400150611,1767156642439,-1000.0,0.00014247,2]
[400150613,1767156642448,-1000.0,0.00014247,2]
[400150615,1767156642458,-1000.0,0.00014247,2]
[400150617,1767156642468,-1000.0,0.00014247,2]
[400150619,1767156642477,-1000.0,0.00014247,2]
[400150621,1767156642486,-941.53284855,0.00014247,2]
[400150623,1767156642496,-1000.0,0.00014247,2]
[400150625,1767156642505,-1000.0,0.00014247,2]
[400150627,1767156642515,-1000.0,0.00014247,2]
[400150629,1767156642524,-1000.0,0.00014247,2]
[400150631,1767156642533,-1000.0,0.00014247,2]
[400150633,1767156642542,-1000.0,0.00014247,2]
[400150635,1767156642552,-267.6781502,0.00014247,2]
[400150637,1767156642561,-1000.0,0.00014247,2]
[400150639,1767156642571,-1401.94,0.00014368,2]
[400150641,1767156642580,-1401.94,0.00014368,2]
[400150643,1767156642589,-1293.85,0.00014368,2]
[400150645,1767156642598,-151.0,0.00014368,2]
[400150647,1767156642608,-151.0,0.00014368,2]
[400150649,1767156642618,-1500.0,0.00014368,2]
[400150651,1767156642628,-252.44576455,0.00014368,2]
[400150653,1767156642637,-1500.0,0.00014368,2]
[400150655,1767156642650,-1500.0,0.00014368,2]
[400150657,1767156642659,-1500.0,0.00014368,2]
[400150658,1767156642668,-1500.0,0.00014368,2]
[400150660,1767156642677,-1500.0,0.00014368,2]
[400150662,1767156642687,-196.20087533,0.00014368,2]
[400150664,1767156642696,-1535.5590815,0.00014368,2]
[400150666,1767156642705,-506.37696416,0.00014368,2]
[400150668,1767156642714,-965.35115233,0.00014368,2]
[400150670,1767156642722,-282.65977069,0.00014368,2]
[400150672,1767156642731,-1500.0,0.00014368,2]
[400150674,1767156642740,-1034.26412326,0.00014368,2]
[400150676,1767156642749,-1185.55855892,0.00014368,2]
[400150678,1767156642758,-1500.0,0.00014368,2]
[400150680,1767156642767,-1500.0,0.00014368,2]
[400150682,1767156642777,-1500.0,0.00014368,2]
[400150684,1767156642787,-1500.0,0.00014368,2]
[400150686,1767156642796,-1500.0,0.00014368,2]
[400150688,1767156642805,-1500.0,0.00014368,2]
[400150690,1767156642814,-1500.0,0.00014368,2]
[400150692,1767156642823,-1500.0,0.00014368,2]
[400150694,1767156642832,-1500.0,0.00014368,2]
[400150696,1767156642841,-190.31177109,0.00014368,2]
[400150698,1767156642850,-1500.0,0.00014368,2]
[400150700,1767156642859,-1500.0,0.00014368,2]
[400150702,1767156642868,-1500.0,0.00014368,2]
[400150704,1767156642878,-1500.0,0.00014368,2]
[400150706,1767156642887,-1324.83546284,0.00014368,2]
[400150708,1767156642896,-379.17821378,0.000144,2]
[400150710,1767156642905,-151.0,0.00014415,2]
[400150712,1767156642915,-250.0,0.00014415,2]
[400150714,1767156642924,-500.0,0.00014415,2]
[400150716,1767156642934,-162.62076672,0.00014415,2]
[400150718,1767156642943,-250.0,0.00014415,2]
[400150720,1767156642952,-250.0,0.00014415,2]
[400150722,1767156642961,-500.0,0.00014415,2]
[400150724,1767156642971,-250.0,0.00014415,2]
[400150726,1767156642980,-500.0,0.00014415,2]
[400150728,1767156642990,-151.50260762,0.00014415,2]
[400150730,1767156642999,-250.0,0.00014415,2]
[400150731,1767156643009,-500.0,0.00014415,2]
[400150733,1767156643018,-151.0,0.00014415,2]
[400150735,1767156643027,-250.0,0.00014415,2]
[400150737,1767156643036,-500.0,0.00014415,2]
[400150739,1767156643045,-151.0,0.00014415,2]
[400150741,1767156643055,-250.0,0.00014415,2]
[400150744,1767156643064,-500.0,0.00014415,2]
[400150747,1767156643073,-514.84070869,0.00014415,2]
[400150749,1767156643082,-151.0,0.00014415,2]
[400150751,1767156643091,-250.0,0.00014415,2]
[400150753,1767156643101,-500.0,0.00014415,2]
[400150768,1767156643226,-151.0,0.00014415,2]
[400150770,1767156643236,-250.0,0.00014415,2]
[400150772,1767156643245,-500.0,0.00014415,2]
[400150774,1767156643255,-151.0,0.00014415,2]
[400150776,1767156643264,-264.15323111,0.00014415,2]
[400150778,1767156643273,-500.0,0.00014415,2]
[400150780,1767156643282,-151.0,0.00014415,2]
[400150782,1767156643291,-500.0,0.00014415,2]
[400150784,1767156643300,-151.0,0.00014415,2]
[400150786,1767156643309,-500.0,0.00014415,2]
[400150788,1767156643318,-151.0,0.00014415,2]
[400150790,1767156643328,-500.0,0.00014415,2]
[400150791,1767156643336,-151.0,0.00014415,2]
[400150793,1767156643345,-500.0,0.00014415,2]
[400150795,1767156643356,-151.0,0.00014415,2]
[400150797,1767156643364,-500.0,0.00014415,2]
[400150799,1767156643373,-151.0,0.00014415,2]
[400150801,1767156643383,-151.0,0.00014415,2]
[400150803,1767156643392,-151.0,0.00014415,2]
[400150805,1767156643401,-151.0,0.00014415,2]
[400150807,1767156643411,-151.0,0.00014415,2]
[400150809,1767156643420,-2487.15318209,0.00014415,2]
[400150811,1767156643430,-257.39953178,0.00014415,2]
[400150813,1767156643439,-1000.0,0.00014415,2]
[400150815,1767156643448,-600.88366755,0.00014488,2]
[400150817,1767156643458,-1081.59060159,0.00014488,2]
[400150819,1767156643467,-1922.82773615,0.00014488,2]
[400150821,1767156643476,-3004.41833774,0.00014488,2]
[400150823,1767156643486,-4326.36240635,0.00014488,2]
[400150825,1767156643495,-291.04720773,0.00014488,2]
[400150827,1767156643504,-523.88497391,0.00014488,2]
[400150829,1767156643513,-931.35106473,0.00014488,2]
[400150831,1767156643523,-2351.0,0.00014525,2]
[400150833,1767156643532,-587.0,0.00014609,2]
[400150835,1767156643541,-10000.0,0.0001463,2]
[400150837,1767156643551,-1401.94,0.00014729,2]
[400150839,1767156643560,-907.56199683,0.00014754,2]
[400150841,1767156643569,-1293.85,0.00014792,2]
[400150843,1767156643578,-1401.94,0.00014794,2]
[400150845,1767156643587,-1401.94,0.00014794,2]
[400150847,1767156643596,-1401.94,0.00014794,2]
[400150849,1767156643606,-1401.94,0.00014794,2]
[400150851,1767156643615,-1401.94,0.00014794,2]
[400150853,1767156643624,-1401.94,0.00014794,2]
[400150855,1767156643633,-1402.08191311,0.00014794,2]
[400150857,1767156643645,-1293.85,0.00014794,2]
[400150859,1767156643654,-1293.85,0.00014794,2]
[400150861,1767156643663,-1500.0,0.00014795,2]
[400150863,1767156643673,-1409.51288327,0.00014795,2]
[400150865,1767156643683,-1500.0,0.00014795,2]
[400150867,1767156643692,-511.86637987,0.00014795,2]
[400150869,1767156643701,-1500.0,0.00014795,2]
[400150870,1767156643711,-1500.0,0.00014795,2]
[400150872,1767156643721,-1500.0,0.00014795,2]
[400150874,1767156643730,-1500.0,0.00014795,2]
[400150876,1767156643739,-1500.0,0.00014795,2]
[400150878,1767156643748,-1500.0,0.00014795,2]
[400150880,1767156643758,-1157.67215419,0.00014795,2]
[400150882,1767156643767,-1500.0,0.00014795,2]
[400150884,1767156643776,-1500.0,0.00014795,2]
[400150886,1767156643786,-1500.0,0.00014795,2]
[400150888,1767156643795,-1500.0,0.00014795,2]
[400150890,1767156643804,-1371.80562161,0.00014795,2]
[400150892,1767156643814,-1500.0,0.00014795,2]
[400150894,1767156643823,-1078.13053233,0.00014795,2]
[400150896,1767156643833,-1500.0,0.00014795,2]
[400150898,1767156643842,-1425.73894344,0.00014795,2]
[400150900,1767156643851,-1500.0,0.00014795,2]
[400150902,1767156643861,-1068.53710429,0.00014795,2]
[400150903,1767156643870,-1500.0,0.00014795,2]
[400150904,1767156643879,-1500.0,0.00014795,2]
[400150905,1767156643889,-463.63501052,0.00014795,2]
[400150906,1767156643898,-1500.0,0.00014795,2]
[400150907,1767156643907,-1500.0,0.00014795,2]
[400150908,1767156643916,-1500.0,0.00014795,2]
[400150909,1767156643926,-662.55448324,0.00014795,2]
[400150910,1767156643935,-614.96936602,0.00014795,2]
[400150911,1767156643944,-1500.0,0.00014795,2]
[400150912,1767156643954,-1500.0,0.00014795,2]
[400150913,1767156643964,-1500.0,0.00014795,2]
[400150914,1767156643973,-1500.0,0.00014795,2]
[400150915,1767156643983,-1500.0,0.00014795,2]
[400150916,1767156643992,-1500.0,0.00014795,2]
[400150917,1767156644002,-1500.0,0.00014795,2]
[400150919,1767156644012,-1500.0,0.00014795,2]
[400150921,1767156644021,-1500.0,0.00014795,2]
[400150922,1767156644030,-1136.51090941,0.00014795,2]
[400150924,1767156644040,-1500.0,0.00014795,2]
[400150926,1767156644050,-1500.0,0.00014795,2]
[400150928,1767156644059,-1500.0,0.00014795,2]
[400150930,1767156644069,-1500.0,0.00014795,2]
[400150931,1767156644078,-1500.0,0.00014795,2]
[400150932,1767156644088,-1605.24677987,0.00014795,2]
[400150933,1767156644097,-342.96834915,0.00014795,2]
[400150934,1767156644106,-1500.0,0.00014795,2]
[400150935,1767156644116,-1500.0,0.00014795,2]
[400150936,1767156644125,-1500.0,0.00014795,2]
[400150937,1767156644134,-1500.0,0.00014795,2]
[400150938,1767156644145,-1500.0,0.00014795,2]
[400150939,1767156644155,-1500.0,0.00014795,2]
[400150940,1767156644164,-1516.82099752,0.00014795,2]
[400150941,1767156644173,-1500.0,0.00014795,2]
[400150942,1767156644182,-1142.5109954,0.00014795,2]
[400150943,1767156644192,-1500.0,0.00014795,2]
[400150944,1767156644202,-1500.0,0.00014795,2]
[400150945,1767156644211,-1500.0,0.00014795,2]
[400150946,1767156644220,-1500.0,0.00014795,2]
[400150947,1767156644230,-1500.0,0.00014795,2]
[400150948,1767156644239,-3216.56088077,0.00014813,2]
[400150949,1767156644248,-513.62325119,0.00014813,2]
[400150950,1767156644258,-2605.85,0.0001489,2]
[400150951,1767156644267,-1293.85,0.00014915,2]
[400150952,1767156644277,-1293.85,0.00014916,2]
[400150953,1767156644286,-151.0,0.00014916,2]
[400150954,1767156644295,-151.0,0.00014916,2]
[400150955,1767156644305,-500.0,0.00014916,2]
[400150956,1767156644315,-2000.0,0.00014916,2]
[400150957,1767156644324,-2000.0,0.00014916,2]
[400150958,1767156644334,-2000.0,0.00014916,2]
[400150959,1767156644343,-2000.0,0.00014916,2]
[400150960,1767156644352,-2000.0,0.00014916,2]
[400150961,1767156644362,-1113.45090759,0.00014916,2]
[400150962,1767156644372,-2000.0,0.00014916,2]
[400150963,1767156644382,-2000.0,0.00014916,2]
[400150964,1767156644391,-2000.0,0.00014916,2]
[400150965,1767156644400,-1818.87701711,0.00014916,2]
[400150966,1767156644410,-220.45191793,0.00014916,2]
[400150967,1767156644420,-239.12450639,0.00014916,2]
[400150968,1767156644430,-2000.0,0.00014916,2]
[400150969,1767156644440,-2000.0,0.00014916,2]
[400150970,1767156644450,-2000.0,0.00014916,2]
[400150971,1767156644460,-2000.0,0.00014916,2]
[400150972,1767156644470,-2000.0,0.00014916,2]
[400150973,1767156644480,-424.40432946,0.00014916,2]
[400150974,1767156644490,-1431.23584985,0.00014916,2]
[400150975,1767156644501,-533.88981491,0.00014963,2]
[400150976,1767156644510,-151.0,0.00014963,2]
[400150977,1767156644520,-2579.17784983,0.00014963,2]
[400150978,1767156644529,-623.775336,0.00015028,2]
[400150979,1767156644539,-623.775336,0.00015028,2]
[400150980,1767156644549,-623.775336,0.00015028,2]
[400150981,1767156644558,-623.775336,0.00015028,2]
[400150982,1767156644568,-194.747586,0.00015028,2]
[400150983,1767156644577,-194.747586,0.00015028,2]
[400150984,1767156644587,-194.747586,0.00015028,2]
[400150985,1767156644596,-194.747586,0.00015028,2]
[400150986,1767156644606,-100000.0,0.00015028,2]
[400150987,1767156644615,-181.299206,0.00015068,2]
[400150988,1767156644626,-803.5950816,0.00015068,2]
[400150989,1767156644635,-250.0,0.00015092,2]
[400150990,1767156644648,-341.01422676,0.00015128,2]
[400150991,1767156644657,-151.0,0.000152,2]
[400150992,1767156644667,-864.0,0.00015211,2]
[400150993,1767156644676,-580.76558466,0.0001534,2]
[400150994,1767156644686,-151.0,0.00015342,2]
[400150995,1767156644695,-158.312179,0.00015342,2]
[400150996,1767156644705,-1293.85,0.00015342,2]
[400150997,1767156644715,-1293.85,0.00015342,2]
[400150998,1767156644724,-1293.85,0.00015342,2]
[400150999,1767156644733,-1293.85,0.00015342,2]
[400151000,1767156644743,-1293.97,0.00015342,2]
[400151001,1767156644753,-2000.0,0.00015342,2]
[400151002,1767156644763,-1537.58100831,0.00015342,2]
[400151003,1767156644773,-165.86238698,0.00015342,2]
[400151004,1767156644783,-2000.0,0.00015342,2]
[400151005,1767156644792,-2005.31532944,0.00015342,2]
[400151006,1767156644802,-1136.69571136,0.00015342,2]
[400151007,1767156644811,-2004.59975832,0.00015342,2]
[400151008,1767156644820,-2000.0,0.00015342,2]
[400151009,1767156644830,-1655.66749295,0.00015342,2]
[400151010,1767156644840,-503.1340869,0.00015342,2]
[400151011,1767156644849,-682.49603851,0.00015342,2]
[400151012,1767156644858,-2000.0,0.00015342,2]
[400151013,1767156644868,-402.01463508,0.00015342,2]
[400151014,1767156644878,-915.94669576,0.00015342,2]
[400151015,1767156644888,-2000.0,0.00015342,2]
[400151016,1767156644899,-2000.0,0.00015342,2]
[400151017,1767156644908,-2018.84773542,0.00015342,2]
[400151018,1767156644918,-1009.61748521,0.00015342,2]
[400151019,1767156644928,-2000.0,0.00015342,2]
[400151020,1767156644937,-288.21762562,0.00015342,2]
[400151021,1767156644947,-2000.0,0.00015342,2]
[400151022,1767156644957,-2000.0,0.00015342,2]
[400151023,1767156644967,-2000.0,0.00015342,2]
[400151024,1767156644976,-2000.0,0.00015342,2]
[400151025,1767156644986,-2000.0,0.00015342,2]
[400151026,1767156644995,-1510.33134929,0.00015342,2]
[400151027,1767156645005,-2000.0,0.00015342,2]
[400151028,1767156645014,-2000.0,0.00015342,2]
[400151029,1767156645024,-1718.16061512,0.00015342,2]
[400151031,1767156645033,-2000.0,0.00015342,2]
[400151032,1767156645043,-2000.0,0.00015342,2]
[400151033,1767156645052,-922.85192268,0.00015342,2]
[400151034,1767156645062,-2000.0,0.00015342,2]
[400151035,1767156645071,-2000.0,0.00015342,2]
[400151036,1767156645080,-2000.0,0.00015342,2]
[400151037,1767156645089,-1104.13585388,0.00015342,2]
[400151038,1767156645099,-2000.0,0.00015342,2]
[400151039,1767156645108,-2000.0,0.00015342,2]
[400151040,1767156645118,-1793.14415046,0.00015342,2]
[400151041,1767156645127,-1504.79599952,0.00015342,2]
[400151042,1767156645137,-2000.0,0.00015342,2]
[400151043,1767156645147,-500.0,0.00015342,2]
[400151044,1767156645156,-1207.59767903,0.00015342,2]
[400151045,1767156645166,-2000.0,0.00015342,2]
[400151046,1767156645175,-2000.0,0.00015342,2]
[400151047,1767156645184,-2000.0,0.00015342,2]
[400151048,1767156645194,-151.0,0.00015464,2]
[400151049,1767156645203,-151.0,0.00015464,2]
[400151050,1767156645213,-2500.0,0.00015464,2]
[400151051,1767156645222,-500.0,0.00015464,2]
[400151052,1767156645232,-1760.55819049,0.00015464,2]
[400151053,1767156645241,-2500.0,0.00015464,2]
[400151054,1767156645250,-849.32071924,0.00015464,2]
[400151055,1767156645260,-2500.0,0.00015464,2]
[400151056,1767156645269,-2360.16624078,0.00015464,2]
[400151057,1767156645279,-2500.0,0.00015464,2]
[400151058,1767156645289,-2515.47786714,0.00015464,2]
[400151059,1767156645298,-2500.0,0.00015464,2]
[400151060,1767156645308,-2500.0,0.00015464,2]
[400151061,1767156645318,-2500.0,0.00015464,2]
[400151062,1767156645328,-2500.0,0.00015464,2]
[400151063,1767156645337,-553.64373807,0.00015511,2]
[400151064,1767156645352,-2674.60743027,0.00015511,2]
[400151065,1767156645362,-1482.3277359,0.0001552,2]
[400151066,1767156645371,-28233.2909615,0.0001553,2]
[400151067,1767156645380,-2368.99811368,0.00015663,2]
[400151068,1767156645390,-151.0,0.000157,2]
[400151069,1767156645399,-10302.97080384,0.00015728,2]
[400151070,1767156645409,-534.26049156,0.0001589,2]
[400151071,1767156645419,-2500.0,0.0001589,2]
[400151072,1767156645428,-1008.82384523,0.0001589,2]
[400151073,1767156645438,-651.60877791,0.0001589,2]
[400151074,1767156645449,-550.74198848,0.0001589,2]
[400151075,1767156645459,-418.31768676,0.0001589,2]
[400151076,1767156645468,-903.04207638,0.0001589,2]
[400151077,1767156645478,-500.0,0.0001589,2]
[400151078,1767156645488,-1500.0,0.0001589,2]
[400151079,1767156645498,-574.09930708,0.0001589,2]
[400151080,1767156645507,-503.64865922,0.0001589,2]
[400151081,1767156645516,-386.3706875,0.0001589,2]
[400151082,1767156645526,-500.0,0.0001589,2]
[400151083,1767156645539,-2500.0,0.0001589,2]
[400151084,1767156645549,-480.71714518,0.0001589,2]
[400151085,1767156645560,-695.14400231,0.0001589,2]
[400151086,1767156645570,-500.0,0.0001589,2]
[400151087,1767156645579,-2500.0,0.0001589,2]
[400151088,1767156645588,-299.59970903,0.0001589,2]
[400151089,1767156645598,-500.0,0.0001589,2]
[400151090,1767156645608,-1035.35417784,0.0001589,2]
[400151091,1767156645617,-777.52543131,0.0001589,2]
[400151092,1767156645626,-379.37902934,0.0001589,2]
[400151093,1767156645636,-189.97563108,0.00015954,2]
[400151094,1767156645649,-2233.0,0.00015977,2]
[400151095,1767156645658,-346.0,0.00016012,2]
[400151096,1767156645668,-346.0,0.00016012,2]
[400151097,1767156645677,-346.0,0.00016012,2]
[400151098,1767156645686,-346.0,0.00016012,2]
[400151099,1767156645695,-346.0,0.00016012,2]
[400151100,1767156645704,-346.0,0.00016012,2]
[400151101,1767156645714,-346.0,0.00016012,2]
[400151102,1767156645725,-346.0,0.00016012,2]
[400151103,1767156645733,-346.0,0.00016012,2]
[400151104,1767156645743,-346.0,0.00016012,2]
[400151105,1767156645752,-346.0,0.00016012,2]
[400151106,1767156645761,-346.0,0.00016012,2]
[400151107,1767156645771,-346.0,0.00016012,2]
[400151108,1767156645780,-346.0,0.00016012,2]
[400151109,1767156645789,-346.0,0.00016012,2]
[400151110,1767156645798,-346.0,0.00016012,2]
[400151111,1767156645807,-346.0,0.00016012,2]
[400151112,1767156645816,-346.0,0.00016012,2]
[400151113,1767156645825,-346.0,0.00016012,2]
[400151114,1767156645835,-346.0,0.00016012,2]
[400151115,1767156645844,-346.0,0.00016012,2]
[400151116,1767156645853,-346.0,0.00016012,2]
[400151117,1767156645862,-346.0,0.00016012,2]
[400151118,1767156645871,-346.0,0.00016012,2]
[400151119,1767156645880,-346.0,0.00016012,2]
[400151120,1767156645890,-346.0,0.00016012,2]
[400151121,1767156645899,-346.0,0.00016012,2]
[400151122,1767156645909,-346.0,0.00016012,2]
[400151123,1767156645918,-346.0,0.00016012,2]
[400151124,1767156645927,-346.0,0.00016012,2]
[400151125,1767156645936,-346.0,0.00016012,2]
[400151126,1767156645945,-346.0,0.00016012,2]
[400151127,1767156645955,-346.0,0.00016012,2]
[400151128,1767156645964,-346.0,0.00016012,2]
[400151129,1767156645973,-346.0,0.00016012,2]
[400151130,1767156645983,-623.775336,0.00016012,2]
[400151131,1767156645996,-346.0,0.00016012,2]
[400151132,1767156646005,-623.775336,0.00016012,2]
[400151133,1767156646015,-623.775336,0.00016012,2]
[400151134,1767156646024,-357.58224127,0.00016012,2]
[400151135,1767156646034,-623.775336,0.00016012,2]
[400151136,1767156646046,-194.747586,0.00016012,2]
[400151137,1767156646055,-194.747586,0.00016012,2]
[400151138,1767156646064,-194.747586,0.00016012,2]
[400151139,1767156646074,-194.747586,0.00016012,2]
[400151140,1767156646086,-2632.66958106,0.00016012,2]
[400151143,1767156646573,-435.015,0.00013273,2]
[400151144,1767156702983,659.743,0.00011883,2]
[400151145,1767156703012,184.00470644,0.00011883,2]
[400151146,1767156756150,-186.85163856,0.00012025,2]
[400151147,1767156756185,-151.0,0.000121,2]
[400151148,1767156756221,-300.0,0.00012124,2]
[400151149,1767156756356,-6881.55901644,0.00012125,2]
[400151150,1767156756441,-10000.01,0.00012125,2]
[400151151,1767156756548,-10000.01,0.00012125,2]
[400151152,1767156756850,-10000.01,0.00012125,2]
[400151153,1767156757153,-10000.01,0.00012125,2]
[400151154,1767156757198,-10000.01,0.00012125,2]
[400151155,1767156758977,-10000.01,0.00012125,2]
[400151156,1767156759073,-10000.01,0.00012125,2]
[400151157,1767156864843,5000.0,0.00011885,2]
[400151158,1767156888611,5000.0,0.00011885,2]
[400151159,1767156911396,0.01,0.00011885,2]
[400151160,1767156911421,4999.99,0.00011885,2]
[400151161,1767156935776,1347.40808207,0.00011885,2]
[400151162,1767157024949,151.94,0.0001,2]
[400151163,1767157027417,151.94,0.000102,2]
[400151164,1767157029822,151.94,0.000104,2]
[400151165,1767157233105,500.0,0.00028767,120]
[400151244,1767157680227,179.51,9.99e-05,2]
[400151245,1767157680537,179.5,9.99e-05,2]
[400151246,1767157753140,-207.35873939,0.00012002,2]
[400151247,1767157753163,-220.72809735,0.00012002,2]
[400151248,1767157753185,-314.89787648,0.00012002,2]
[400151249,1767157753204,-589.0,0.00012002,2]
[400151250,1767157753224,-300.0,0.00012019,2]
[400151251,1767157753243,-289.0,0.00012019,2]
[400151252,1767157753267,-15501.62965818,0.0001202,2]
[400151253,1767157764131,-8725.27347059,0.0001202,2]
[400151298,1767157837565,-300.0,0.00012019,2]
[400151299,1767157837575,-300.0,0.00012019,2]
[400151300,1767157837584,-589.0,0.00012019,2]
[400151301,1767157837593,-300.0,0.00012019,2]
[400151302,1767157837603,-1200.0,0.00012019,2]
[400151303,1767157837613,-1262.68516792,0.0001202,2]
[400151304,1767157837625,-974510.41170331,0.0001202,2]
[400151305,1767157837634,-885.14,0.00012073,2]
[400151306,1767157837643,-1080.4388829,0.00012117,2]
[400151307,1767157837652,-1200.0,0.00012117,2]
[400151308,1767157837661,-500.0,0.00012117,2]
[400151309,1767157837670,-500.56352388,0.00012117,2]
[400151310,1767157837679,-500.0,0.00012117,2]
[400151311,1767157837687,-500.0,0.00012117,2]
[400151312,1767157837696,-500.0,0.00012117,2]
[400151313,1767157837706,-500.0,0.00012117,2]
[400151314,1767157837716,-500.0,0.00012117,2]
[400151315,1767157837725,-500.0,0.00012117,2]
[400151316,1767157837735,-500.0,0.00012117,2]
[400151317,1767157837744,-500.0,0.00012117,2]
[400151318,1767157837753,-500.0,0.00012117,2]
[400151319,1767157837763,-500.0,0.00012117,2]
[400151320,1767157837772,-500.0,0.00012117,2]
[400151321,1767157837782,-500.0,0.00012117,2]
[400151322,1767157837791,-500.0,0.00012117,2]
[400151323,1767157837800,-500.0,0.00012117,2]
[400151324,1767157837810,-500.0,0.00012117,2]
[400151325,1767157837819,-637.42386216,0.00012117,2]
[400151326,1767157837828,-500.0,0.00012117,2]
[400151327,1767157837838,-500.0,0.00012117,2]
[400151328,1767157837847,-500.0,0.00012117,2]
[400151329,1767157837856,-500.0,0.00012117,2]
[400151330,1767157837866,-500.0,0.00012117,2]
[400151331,1767157837876,-500.0,0.00012117,2]
[400151332,1767157837885,-500.0,0.00012117,2]
[400151333,1767157837895,-500.0,0.00012117,2]
[400151334,1767157837905,-500.0,0.00012117,2]
[400151335,1767157837919,-500.0,0.00012117,2]
[400151336,1767157837928,-610.54313875,0.00012117,2]
[400151337,1767157837937,-500.0,0.00012117,2]